fUST/lending_fUST_20251231
["ID","MTS","AMOUNT","RATE_DAILY","PERIOD"]
[400172502,1767168641241,-160.3309554,0.00013699,2]
[400172503,1767168641253,-260.2481779,0.00013699,2]
[400172505,1767168641263,-158.38886572,0.00013699,2]
[400172508,1767168641273,-158.18512013,0.00013699,2]
[400172509,1767168641282,-500.0,0.00013699,2]
[400172511,1767168641291,-157.18386067,0.00013699,2]
[400172513,1767168641301,-500.0,0.00013699,2]
[400172515,1767168641310,-158.38534191,0.00013699,2]
[400172517,1767168641320,-500.0,0.00013699,2]
[400172519,1767168641330,-298.53483888,0.00013699,2]
[400172521,1767168641339,-188.42009972,0.00013699,2]
[400172523,1767168641349,-500.0,0.00013699,2]
[400172525,1767168641358,-500.0,0.00013699,2]
[400172527,1767168641368,-158.39206841,0.00013699,2]
[400172529,1767168641378,-500.0,0.00013699,2]
[400172531,1767168641387,-500.0,0.00013699,2]
[400172533,1767168641396,-500.0,0.00013699,2]
[400172535,1767168641405,-500.0,0.00013699,2]
[400172537,1767168641415,-500.0,0.00013699,2]
[400172539,1767168641425,-150.35034149,0.00013699,2]
[400172541,1767168641434,-500.0,0.00013699,2]
[400172543,1767168641443,-346.46150426,0.00013699,2]
[400172545,1767168641453,-500.0,0.00013699,2]
[400172547,1767168641462,-500.0,0.00013699,2]
[400172549,1767168641471,-500.0,0.00013699,2]
[400172551,1767168641480,-500.0,0.00013699,2]
[400172565,1767168641608,-500.0,0.00013699,2]
[400172567,1767168641618,-416.75445415,0.00013699,2]
[400172569,1767168641627,-260.28159851,0.00013699,2]
[400172571,1767168641637,-500.0,0.00013699,2]
[400172573,1767168641646,-500.0,0.00013699,2]
[400172575,1767168641656,-160.15137988,0.00013699,2]
[400172577,1767168641665,-500.0,0.00013699,2]
[400172579,1767168641674,-500.0,0.00013699,2]
[400172581,1767168641684,-158.18512633,0.00013699,2]
[400172583,1767168641693,-500.0,0.00013699,2]
[400172585,1767168641702,-500.0,0.00013699,2]
[400172587,1767168641712,-500.0,0.00013699,2]
[400172589,1767168641722,-163.65866633,0.00013699,2]
[400172591,1767168641731,-500.0,0.00013699,2]
[400172593,1767168641740,-500.0,0.00013699,2]
[400172595,1767168641750,-500.0,0.00013699,2]
[400172597,1767168641759,-500.0,0.00013699,2]
[400172599,1767168641769,-500.0,0.00013699,2]
[400172601,1767168641777,-500.0,0.00013699,2]
[400172603,1767168641786,-309.28633635,0.00013699,2]
[400172605,1767168641795,-500.0,0.00013699,2]
[400172607,1767168641804,-500.57498562,0.00013699,2]
[400172608,1767168641813,-500.0,0.00013699,2]
[400172610,1767168641822,-500.0,0.00013699,2]
[400172612,1767168641831,-307.59957655,0.00013699,2]
[400172614,1767168641841,-500.0,0.00013699,2]
[400172616,1767168641851,-500.0,0.00013699,2]
[400172618,1767168641860,-500.0,0.00013699,2]
[400172620,1767168641869,-500.0,0.00013699,2]
[400172622,1767168641879,-500.0,0.00013699,2]
[400172624,1767168641888,-540.63230604,0.00013699,2]
[400172626,1767168641897,-500.0,0.00013699,2]
[400172628,1767168641907,-500.0,0.00013699,2]
[400172630,1767168641917,-500.0,0.00013699,2]
[400172632,1767168641926,-500.0,0.00013699,2]
[400172634,1767168641935,-500.0,0.00013699,2]
[400172636,1767168641944,-500.0,0.00013699,2]
[400172638,1767168641953,-500.0,0.00013699,2]
[400172640,1767168641963,-500.0,0.00013699,2]
[400172642,1767168641972,-500.0,0.00013699,2]
[400172644,1767168641982,-500.0,0.00013699,2]
[400172646,1767168641991,-500.0,0.00013699,2]
[400172648,1767168642001,-500.0,0.00013699,2]
[400172650,1767168642011,-237.8458189,0.00013699,2]
[400172652,1767168642020,-158.38534385,0.00013699,2]
[400172653,1767168642030,-158.3853059,0.00013699,2]
[400172655,1767168642039,-500.0,0.00013699,2]
[400172657,1767168642049,-178.08460977,0.00013699,2]
[400172659,1767168642059,-500.0,0.00013699,2]
[400172661,1767168642068,-500.0,0.00013699,2]
[400172663,1767168642077,-500.0,0.00013699,2]
[400172665,1767168642087,-158.10807846,0.00013699,2]
[400172667,1767168642096,-500.0,0.00013699,2]
[400172669,1767168642106,-500.0,0.00013699,2]
[400172671,1767168642116,-500.0,0.00013699,2]
[400172673,1767168642126,-500.0,0.00013699,2]
[400172675,1767168642136,-500.0,0.00013699,2]
[400172677,1767168642145,-500.0,0.00013699,2]
[400172679,1767168642155,-500.0,0.00013699,2]
[400172681,1767168642164,-500.0,0.00013699,2]
[400172683,1767168642174,-500.0,0.00013699,2]
[400172685,1767168642184,-500.0,0.00013699,2]
[400172687,1767168642194,-500.0,0.00013699,2]
[400172689,1767168642204,-500.0,0.00013699,2]
[400172691,1767168642214,-500.0,0.00013699,2]
[400172693,1767168642223,-500.0,0.00013699,2]
[400172695,1767168642233,-500.0,0.00013699,2]
[400172697,1767168642242,-465.53448151,0.00013699,2]
[400172699,1767168642252,-500.0,0.00013699,2]
[400172701,1767168642262,-151.0,0.000137,2]
[400172703,1767168642271,-864.0,0.00013701,2]
[400172705,1767168642282,-825.4501579,0.00013762,2]
[400172707,1767168642292,-466.12686448,0.00013784,2]
[400172709,1767168642301,-1000.0,0.00013821,2]
[400172711,1767168642311,-696.20087533,0.00013821,2]
[400172713,1767168642320,-1000.0,0.00013821,2]
[400172715,1767168642330,-1000.0,0.00013821,2]
[400172717,1767168642340,-1000.0,0.00013821,2]
[400172719,1767168642349,-1000.0,0.00013821,2]
[400172721,1767168642358,-1000.0,0.00013821,2]
[400172723,1767168642368,-1000.0,0.00013821,2]
[400172725,1767168642378,-1000.0,0.00013821,2]
[400172727,1767168642388,-1000.0,0.00013821,2]
[400172729,1767168642397,-1000.0,0.00013821,2]
[400172731,1767168642407,-1000.0,0.00013821,2]
[400172733,1767168642416,-1000.0,0.00013821,2]
[400172735,1767168642425,-1000.0,0.00013821,2]
[400172737,1767168642434,-1000.0,0.00013821,2]
[400172739,1767168642444,-1000.0,0.00013821,2]
[400172741,1767168642453,-1000.0,0.00013821,2]
[400172743,1767168642462,-1000.0,0.00013821,2]
[400172744,1767168642471,-1000.0,0.00013821,2]
[400172746,1767168642481,-1061.98334321,0.00013821,2]
[400172748,1767168642490,-1000.0,0.00013821,2]
[400172750,1767168642500,-1000.0,0.00013821,2]
[400172752,1767168642510,-849.3977641,0.00013821,2]
[400172755,1767168642519,-1000.0,0.00013821,2]
[400172757,1767168642529,-1000.0,0.00013821,2]
[400172758,1767168642538,-686.16786472,0.00013821,2]
[400172760,1767168642547,-1000.0,0.00013821,2]
[400172762,1767168642558,-1000.0,0.00013821,2]
[400172764,1767168642568,-1000.0,0.00013821,2]
[400172766,1767168642577,-1000.0,0.00013821,2]
[400172768,1767168642586,-1000.0,0.00013821,2]
[400172770,1767168642596,-690.31177109,0.00013821,2]
[400172772,1767168642605,-1000.0,0.00013821,2]
[400172774,1767168642615,-1000.0,0.00013821,2]
[400172776,1767168642624,-413.99757981,0.00013821,2]
[400172778,1767168642634,-1000.0,0.00013821,2]
[400172780,1767168642644,-1000.0,0.00013821,2]
[400172782,1767168642653,-1000.0,0.00013821,2]
[400172784,1767168642663,-1000.0,0.00013821,2]
[400172786,1767168642673,-1577.3686187,0.00014033,2]
[400172788,1767168642683,-151.0,0.000141,2]
[400172790,1767168642693,-4087.75,0.00014116,2]
[400172792,1767168642702,-634.48556821,0.00014173,2]
[400172794,1767168642712,-1000.0,0.00014247,2]
[400172796,1767168642721,-1000.0,0.00014247,2]
[400172798,1767168642731,-1000.0,0.00014247,2]
[400172800,1767168642740,-500.68443154,0.00014247,2]
[400172802,1767168642750,-1000.0,0.00014247,2]
[400172804,1767168642759,-1000.0,0.00014247,2]
[400172806,1767168642769,-1000.0,0.00014247,2]
[400172808,1767168642778,-1000.0,0.00014247,2]
[400172810,1767168642788,-1000.0,0.00014247,2]
[400172812,1767168642797,-500.4478313,0.00014247,2]
[400172814,1767168642806,-1000.0,0.00014247,2]
[400172816,1767168642816,-1000.0,0.00014247,2]
[400172818,1767168642825,-1000.0,0.00014247,2]
[400172820,1767168642835,-1005.9697834,0.00014247,2]
[400172822,1767168642844,-911.90264951,0.00014247,2]
[400172824,1767168642854,-1000.0,0.00014247,2]
[400172826,1767168642864,-1000.0,0.00014247,2]
[400172828,1767168642873,-1000.0,0.00014247,2]
[400172830,1767168642883,-1000.0,0.00014247,2]
[400172832,1767168642892,-1000.0,0.00014247,2]
[400172835,1767168642901,-297.63479171,0.00014247,2]
[400172837,1767168642909,-1000.0,0.00014247,2]
[400172839,1767168642918,-1000.0,0.00014247,2]
[400172841,1767168642927,-1002.43895782,0.00014247,2]
[400172842,1767168642936,-1000.0,0.00014247,2]
[400172844,1767168642945,-1000.75482131,0.00014247,2]
[400172846,1767168642955,-1000.0,0.00014247,2]
[400172848,1767168642964,-1000.0,0.00014247,2]
[400172850,1767168642973,-1000.0,0.00014247,2]
[400172852,1767168642982,-1000.0,0.00014247,2]
[400172854,1767168642991,-1000.0,0.00014247,2]
[400172856,1767168643001,-1000.0,0.00014247,2]
[400172858,1767168643010,-1000.0,0.00014247,2]
[400172860,1767168643019,-1000.0,0.00014247,2]
[400172862,1767168643029,-1000.0,0.00014247,2]
[400172864,1767168643038,-688.75934812,0.00014247,2]
[400172866,1767168643047,-1000.0,0.00014247,2]
[400172868,1767168643056,-500.48099046,0.00014247,2]
[400172870,1767168643065,-609.17214565,0.00014247,2]
[400172872,1767168643074,-1000.0,0.00014247,2]
[400172874,1767168643083,-495.63847364,0.00014247,2]
[400172876,1767168643092,-433.15519118,0.00014247,2]
[400172878,1767168643101,-1000.0,0.00014247,2]
[400172880,1767168643110,-1000.0,0.00014247,2]
[400172882,1767168643120,-1000.0,0.00014247,2]
[400172884,1767168643129,-1000.0,0.00014247,2]
[400172886,1767168643139,-1000.0,0.00014247,2]
[400172888,1767168643147,-1000.0,0.00014247,2]
[400172890,1767168643157,-1000.0,0.00014247,2]
[400172892,1767168643166,-1000.0,0.00014247,2]
[400172894,1767168643175,-1000.0,0.00014247,2]
[400172896,1767168643183,-1000.0,0.00014247,2]
[400172898,1767168643193,-1000.0,0.00014247,2]
[400172900,1767168643202,-1000.0,0.00014247,2]
[400172902,1767168643212,-1000.0,0.00014247,2]
[400172904,1767168643221,-1000.0,0.00014247,2]
[400172906,1767168643230,-1000.0,0.00014247,2]
[400172908,1767168643240,-1000.0,0.00014247,2]
[400172910,1767168643251,-1000.0,0.00014247,2]
[400172912,1767168643261,-1000.0,0.00014247,2]
[400172914,1767168643270,-866.45646788,0.00014247,2]
[400172916,1767168643279,-1000.0,0.00014247,2]
[400172918,1767168643291,-1000.0,0.00014247,2]
[400172920,1767168643300,-1000.0,0.00014247,2]
[400172921,1767168643309,-1000.0,0.00014247,2]
[400172923,1767168643319,-1000.0,0.00014247,2]
[400172925,1767168643329,-295.43360933,0.00014247,2]
[400172927,1767168643338,-251.84601956,0.00014247,2]
[400172929,1767168643347,-1000.0,0.00014247,2]
[400172931,1767168643357,-1000.0,0.00014247,2]
[400172933,1767168643366,-1000.0,0.00014247,2]
[400172935,1767168643376,-1000.0,0.00014247,2]
[400172937,1767168643385,-1000.0,0.00014247,2]
[400172939,1767168643394,-1000.0,0.00014247,2]
[400172941,1767168643405,-267.6781502,0.00014247,2]
[400172943,1767168643414,-1000.0,0.00014247,2]
[400172945,1767168643423,-1000.0,0.00014247,2]
[400172947,1767168643432,-454.65827101,0.00014247,2]
[400172949,1767168643442,-1000.0,0.00014247,2]
[400172951,1767168643451,-439.97362328,0.00014247,2]
[400172953,1767168643461,-1500.0,0.00014368,2]
[400172955,1767168643470,-1034.26412326,0.00014368,2]
[400172957,1767168643480,-506.37696416,0.00014368,2]
[400172959,1767168643490,-720.45191793,0.00014368,2]
[400172961,1767168643500,-1500.0,0.00014368,2]
[400172963,1767168643510,-965.35115233,0.00014368,2]
[400172965,1767168643519,-1500.0,0.00014368,2]
[400172967,1767168643528,-1500.0,0.00014368,2]
[400172969,1767168643538,-1500.0,0.00014368,2]
[400172971,1767168643547,-1500.0,0.00014368,2]
[400172973,1767168643556,-252.44576455,0.00014368,2]
[400172975,1767168643565,-1500.0,0.00014368,2]
[400172977,1767168643574,-1535.5590815,0.00014368,2]
[400172979,1767168643584,-1500.0,0.00014368,2]
[400172981,1767168643592,-1500.0,0.00014368,2]
[400172982,1767168643601,-1500.0,0.00014368,2]
[400172984,1767168643611,-1500.0,0.00014368,2]
[400172986,1767168643620,-160.40400037,0.00014368,2]
[400172988,1767168643630,-1500.0,0.00014368,2]
[400172990,1767168643639,-1500.0,0.00014368,2]
[400172992,1767168643650,-1424.40432946,0.00014368,2]
[400172994,1767168643659,-1500.0,0.00014368,2]
[400172996,1767168643667,-1500.0,0.00014368,2]
[400172998,1767168643676,-750.79014339,0.00014368,2]
[400173000,1767168643685,-1500.0,0.00014368,2]
[400173002,1767168643694,-1500.0,0.00014368,2]
[400173004,1767168643703,-1500.0,0.00014368,2]
[400173006,1767168643713,-782.65977069,0.00014368,2]
[400173008,1767168643722,-1239.12450639,0.00014368,2]
[400173010,1767168643731,-1500.0,0.00014368,2]
[400173012,1767168643741,-1500.0,0.00014368,2]
[400173014,1767168643750,-1644.50771368,0.00014368,2]
[400173016,1767168643759,-1500.0,0.00014368,2]
[400173018,1767168643768,-151.0,0.000144,2]
[400173020,1767168643777,-165.4461846,0.00014525,2]
[400173021,1767168643787,-823.0,0.00014595,2]
[400173023,1767168643797,-810.0,0.00014638,2]
[400173025,1767168643806,-250.0,0.0001466,2]
[400173028,1767168643816,-4905.3,0.00014681,2]
[400173030,1767168643826,-2511.0,0.00014715,2]
[400173032,1767168643835,-9925.60811242,0.00014769,2]
[400173034,1767168643844,-439.34561604,0.00014785,2]
[400173036,1767168643854,-1078.13053233,0.00014795,2]
[400173038,1767168643864,-1500.0,0.00014795,2]
[400173040,1767168643873,-1500.0,0.00014795,2]
[400173041,1767168643883,-1011.86637987,0.00014795,2]
[400173043,1767168643892,-1500.0,0.00014795,2]
[400173045,1767168643902,-1500.0,0.00014795,2]
[400173048,1767168643913,-1500.0,0.00014795,2]
[400173049,1767168643922,-1371.80562161,0.00014795,2]
[400173051,1767168643932,-524.36073826,0.00014795,2]
[400173053,1767168643942,-463.63501052,0.00014795,2]
[400173055,1767168643951,-1500.0,0.00014795,2]
[400173057,1767168643961,-1500.0,0.00014795,2]
[400173059,1767168643970,-1500.0,0.00014795,2]
[400173061,1767168643980,-690.10820632,0.00014795,2]
[400173063,1767168643989,-1500.0,0.00014795,2]
[400173065,1767168643999,-1500.0,0.00014795,2]
[400173067,1767168644008,-614.96936602,0.00014795,2]
[400173069,1767168644018,-1500.0,0.00014795,2]
[400173071,1767168644027,-1500.0,0.00014795,2]
[400173073,1767168644038,-1500.0,0.00014795,2]
[400173076,1767168644050,-1500.0,0.00014795,2]
[400173077,1767168644059,-868.38939569,0.00014795,2]
[400173079,1767168644068,-1500.0,0.00014795,2]
[400173080,1767168644078,-1500.0,0.00014795,2]
[400173081,1767168644087,-1345.96405937,0.00014795,2]
[400173082,1767168644097,-1500.0,0.00014795,2]
[400173083,1767168644106,-1425.73894344,0.00014795,2]
[400173084,1767168644117,-1068.53710429,0.00014795,2]
[400173085,1767168644127,-1500.0,0.00014795,2]
[400173086,1767168644137,-1500.0,0.00014795,2]
[400173087,1767168644146,-1500.0,0.00014795,2]
[400173088,1767168644155,-1500.0,0.00014795,2]
[400173089,1767168644164,-1500.0,0.00014795,2]
[400173090,1767168644174,-1500.0,0.00014795,2]
[400173091,1767168644183,-1142.5109954,0.00014795,2]
[400173092,1767168644192,-1500.0,0.00014795,2]
[400173094,1767168644201,-1639.28203437,0.00014795,2]
[400173096,1767168644210,-1500.0,0.00014795,2]
[400173098,1767168644220,-1500.0,0.00014795,2]
[400173100,1767168644229,-1500.0,0.00014795,2]
[400173102,1767168644239,-342.96834915,0.00014795,2]
[400173104,1767168644250,-1500.0,0.00014795,2]
[400173105,1767168644259,-1516.82099752,0.00014795,2]
[400173107,1767168644269,-1500.0,0.00014795,2]
[400173110,1767168644279,-1500.0,0.00014795,2]
[400173111,1767168644288,-1633.65989049,0.00014795,2]
[400173114,1767168644298,-1500.0,0.00014795,2]
[400173116,1767168644307,-1500.0,0.00014795,2]
[400173119,1767168644317,-1500.0,0.00014795,2]
[400173121,1767168644326,-1500.0,0.00014795,2]
[400173123,1767168644335,-1500.0,0.00014795,2]
[400173129,1767168644456,-1500.0,0.00014795,2]
[400173130,1767168644467,-1500.0,0.00014795,2]
[400173131,1767168644477,-662.55448324,0.00014795,2]
[400173132,1767168644487,-1500.0,0.00014795,2]
[400173133,1767168644497,-1500.0,0.00014795,2]
[400173134,1767168644506,-1500.0,0.00014795,2]
[400173135,1767168644516,-1500.0,0.00014795,2]
[400173136,1767168644525,-1500.0,0.00014795,2]
[400173137,1767168644535,-1500.0,0.00014795,2]
[400173138,1767168644545,-1500.0,0.00014795,2]
[400173139,1767168644554,-1500.0,0.00014795,2]
[400173140,1767168644564,-818.87701711,0.00014916,2]
[400173141,1767168644573,-1113.45090759,0.00014916,2]
[400173142,1767168644582,-2000.0,0.00014916,2]
[400173143,1767168644592,-2000.0,0.00014916,2]
[400173144,1767168644602,-2000.0,0.00014916,2]
[400173146,1767168644612,-2000.0,0.00014916,2]
[400173147,1767168644621,-2000.0,0.00014916,2]
[400173149,1767168644631,-2000.0,0.00014916,2]
[400173150,1767168644640,-2000.0,0.00014916,2]
[400173151,1767168644651,-2000.0,0.00014916,2]
[400173152,1767168644660,-2000.0,0.00014916,2]
[400173153,1767168644670,-2000.0,0.00014916,2]
[400173154,1767168644679,-2000.0,0.00014916,2]
[400173155,1767168644688,-2000.0,0.00014916,2]
[400173156,1767168644698,-931.23584985,0.00014916,2]
[400173158,1767168644708,-2000.0,0.00014916,2]
[400173159,1767168644717,-2000.0,0.00014916,2]
[400173160,1767168644726,-2000.0,0.00014916,2]
[400173161,1767168644739,-185.55855892,0.00014916,2]
[400173162,1767168644748,-2000.0,0.00014916,2]
[400173163,1767168644758,-2000.0,0.00014916,2]
[400173164,1767168644768,-1174.16213624,0.00014963,2]
[400173165,1767168644777,-100000.0,0.00015028,2]
[400173166,1767168644787,-163.026084,0.00015068,2]
[400173167,1767168644797,-803.60344278,0.00015068,2]
[400173168,1767168644806,-1000.0,0.00015071,2]
[400173169,1767168644816,-466.12686448,0.00015122,2]
[400173170,1767168644825,-500.0,0.0001519,2]
[400173171,1767168644834,-150.0,0.0001519,2]
[400173172,1767168644844,-5722.85,0.00015246,2]
[400173173,1767168644853,-500.0,0.00015327,2]
[400173174,1767168644863,-150.0,0.00015327,2]
[400173175,1767168644872,-402.01463508,0.00015342,2]
[400173176,1767168644882,-2000.0,0.00015342,2]
[400173177,1767168644892,-1655.66749295,0.00015342,2]
[400173178,1767168644902,-1009.61748521,0.00015342,2]
[400173179,1767168644911,-503.1340869,0.00015342,2]
[400173180,1767168644921,-682.49603851,0.00015342,2]
[400173181,1767168644933,-2000.0,0.00015342,2]
[400173182,1767168644943,-2000.0,0.00015342,2]
[400173183,1767168644953,-288.21762562,0.00015342,2]
[400173184,1767168644962,-2000.0,0.00015342,2]
[400173185,1767168644972,-2000.0,0.00015342,2]
[400173186,1767168644981,-1510.33134929,0.00015342,2]
[400173187,1767168644991,-2000.0,0.00015342,2]
[400173188,1767168645001,-2018.84773542,0.00015342,2]
[400173190,1767168645010,-2000.0,0.00015342,2]
[400173192,1767168645019,-2000.0,0.00015342,2]
[400173193,1767168645030,-2000.0,0.00015342,2]
[400173194,1767168645039,-2000.0,0.00015342,2]
[400173195,1767168645048,-2000.0,0.00015342,2]
[400173196,1767168645058,-2000.0,0.00015342,2]
[400173197,1767168645067,-909.51288327,0.00015342,2]
[400173198,1767168645076,-2000.0,0.00015342,2]
[400173199,1767168645086,-2000.0,0.00015342,2]
[400173201,1767168645095,-500.0,0.00015342,2]
[400173202,1767168645104,-1793.14415046,0.00015342,2]
[400173203,1767168645113,-2000.0,0.00015342,2]
[400173204,1767168645123,-2000.0,0.00015342,2]
[400173205,1767168645133,-1504.98936626,0.00015342,2]
[400173206,1767168645142,-2000.0,0.00015342,2]
[400173207,1767168645151,-2000.0,0.00015342,2]
[400173208,1767168645161,-1504.79599952,0.00015342,2]
[400173209,1767168645170,-2000.0,0.00015342,2]
[400173211,1767168645180,-2000.0,0.00015342,2]
[400173212,1767168645189,-2000.0,0.00015342,2]
[400173213,1767168645198,-2000.0,0.00015342,2]
[400173214,1767168645208,-1718.16061512,0.00015342,2]
[400173215,1767168645218,-1104.13585388,0.00015342,2]
[400173216,1767168645227,-2000.0,0.00015342,2]
[400173217,1767168645236,-2000.0,0.00015342,2]
[400173218,1767168645246,-2000.0,0.00015342,2]
[400173219,1767168645260,-157.67215419,0.00015342,2]
[400173221,1767168645269,-1165.86238698,0.00015342,2]
[400173222,1767168645279,-2000.0,0.00015342,2]
[400173223,1767168645289,-2000.0,0.00015342,2]
[400173224,1767168645299,-2000.0,0.00015342,2]
[400173225,1767168645308,-500.0,0.00015464,2]
[400173226,1767168645318,-253.14948986,0.00015464,2]
[400173227,1767168645329,-1760.55819049,0.00015464,2]
[400173228,1767168645338,-2500.0,0.00015464,2]
[400173230,1767168645348,-1515.47786714,0.00015464,2]
[400173231,1767168645357,-478.35295088,0.00015464,2]
[400173232,1767168645366,-849.32071924,0.00015464,2]
[400173233,1767168645376,-2500.0,0.00015464,2]
[400173234,1767168645385,-2500.0,0.00015464,2]
[400173235,1767168645395,-500.0,0.00015464,2]
[400173236,1767168645405,-2500.0,0.00015464,2]
[400173237,1767168645414,-1500.0,0.00015464,2]
[400173238,1767168645424,-2500.0,0.00015464,2]
[400173240,1767168645434,-2500.0,0.00015464,2]
[400173241,1767168645447,-503.81920107,0.00015464,2]
[400173242,1767168645456,-2500.0,0.00015464,2]
[400173243,1767168645466,-2500.0,0.00015464,2]
[400173244,1767168645476,-2500.0,0.00015464,2]
[400173245,1767168645486,-2500.0,0.00015464,2]
[400173246,1767168645496,-1577.3686187,0.00015503,2]
[400173247,1767168645505,-265.11029521,0.00015601,2]
[400173248,1767168645514,-6540.39,0.0001581,2]
[400173249,1767168645524,-651.60877791,0.0001589,2]
[400173251,1767168645536,-1039.92702157,0.0001589,2]
[400173252,1767168645545,-1508.82384523,0.0001589,2]
[400173253,1767168645555,-418.31768676,0.0001589,2]
[400173254,1767168645565,-574.09930708,0.0001589,2]
[400173255,1767168645575,-503.64865922,0.0001589,2]
[400173256,1767168645584,-2005.55305045,0.0001589,2]
[400173257,1767168645595,-550.74198848,0.0001589,2]
[400173258,1767168645605,-504.59975832,0.0001589,2]
[400173259,1767168645614,-386.3706875,0.0001589,2]
[400173260,1767168645623,-1534.26049156,0.0001589,2]
[400173262,1767168645633,-903.04207638,0.0001589,2]
[400173263,1767168645642,-777.52543131,0.0001589,2]
[400173264,1767168645652,-500.0,0.0001589,2]
[400173265,1767168645661,-2500.0,0.0001589,2]
[400173267,1767168645671,-480.71714518,0.0001589,2]
[400173268,1767168645680,-500.0,0.0001589,2]
[400173269,1767168645690,-500.0,0.0001589,2]
[400173270,1767168645699,-2500.0,0.0001589,2]
[400173271,1767168645709,-379.37902934,0.0001589,2]
[400173272,1767168645719,-1005.31532944,0.0001589,2]
[400173273,1767168645729,-2500.0,0.0001589,2]
[400173274,1767168645738,-500.0,0.0001589,2]
[400173275,1767168645748,-1535.35417784,0.0001589,2]
[400173276,1767168645757,-695.14400231,0.0001589,2]
[400173277,1767168645767,-299.59970903,0.0001589,2]
[400173278,1767168645776,-3000.0,0.00016012,2]
[400173279,1767168645786,-3000.0,0.00016012,2]
[400173280,1767168645795,-3000.0,0.00016012,2]
[400173281,1767168645805,-3000.0,0.00016012,2]
[400173283,1767168645814,-3000.0,0.00016012,2]
[400173285,1767168645824,-3000.0,0.00016012,2]
[400173288,1767168645834,-3000.0,0.00016012,2]
[400173290,1767168645843,-3000.0,0.00016012,2]
[400173292,1767168645852,-3000.0,0.00016012,2]
[400173293,1767168645861,-3005.99987486,0.00016012,2]
[400173295,1767168645871,-1152.0,0.00016039,2]
[400173297,1767168645880,-7357.94,0.00016375,2]
[400173298,1767168645889,-500.0,0.00016438,2]
[400173299,1767168645899,-500.0,0.00016438,2]
[400173300,1767168645908,-637.58528706,0.00016438,2]
[400173301,1767168645917,-3000.0,0.00016438,2]
[400173302,1767168645927,-3000.0,0.00016438,2]
[400173303,1767168645936,-1383.15755431,0.00016438,2]
[400173304,1767168645946,-466.12686448,0.0001646,2]
[400173305,1767168645955,-200.0,0.00016473,2]
[400173306,1767168645965,-3347.53001016,0.0001656,2]
[400173307,1767168645976,-2588.85772816,0.0001656,2]
[400173308,1767168645985,-2576.89571839,0.0001656,2]
[400173309,1767168645995,-3500.0,0.0001656,2]
[400173310,1767168646003,-3500.0,0.0001656,2]
[400173311,1767168646013,-3500.0,0.0001656,2]
[400173312,1767168646023,-3500.0,0.0001656,2]
[400173313,1767168646032,-3500.0,0.0001656,2]
[400173314,1767168646043,-3500.0,0.0001656,2]
[400173315,1767168646052,-1419.12334533,0.0001656,2]
[400173316,1767168646061,-1000.0,0.00016578,2]
[400173317,1767168646071,-244.0,0.00016578,2]
[400173318,1767168646080,-111233.6717494,0.00016697,2]
[400173319,1767168646089,-497.49430052,0.00016785,2]
[400173320,1767168646098,-8175.49,0.00016939,2]
[400173321,1767168646107,-3500.0,0.00016986,2]
[400173322,1767168646117,-3500.0,0.00016986,2]
[400173323,1767168646127,-661.78473839,0.00017068,2]
[400173324,1767168646136,-1530.88192264,0.00017108,2]
[400173325,1767168646145,-4000.0,0.00017108,2]
[400173326,1767168646155,-3517.91360693,0.00017108,2]
[400173328,1767168646164,-1361.9082954,0.00017108,2]
[400173329,1767168646175,-4000.0,0.00017108,2]
[400173330,1767168646184,-4000.0,0.00017108,2]
[400173331,1767168646194,-1174.16213624,0.00017159,2]
[400173332,1767168646203,-151.0,0.00017336,2]
[400173333,1767168646213,-162.62076672,0.00017336,2]
[400173334,1767168646222,-151.0,0.00017336,2]
[400173335,1767168646232,-151.0,0.00017336,2]